fUSD/lending_fUSD_20251113
["ID","MTS","AMOUNT","RATE_DAILY","PERIOD"]
[393855113,1763043039758,-456.0,0.00034311,30]
[393855114,1763043039766,-500.0,0.00034311,2]
[393855115,1763043039776,-1311.0,0.00034311,30]
[393855116,1763043039786,-500.0,0.00034311,30]
[393855117,1763043039797,-500.0,0.00034311,30]
[393855118,1763043039806,-529.84,0.0003433,2]
[393855119,1763043039816,-777.76184949,0.00034346,2]
[393855120,1763043039826,-500.0,0.00034425,2]
[393855121,1763043039835,-150.0,0.00034425,2]
[393855122,1763043039846,-150.0,0.00034425,2]
[393855123,1763043039857,-500.0,0.00034425,2]
[393855124,1763043039866,-151.07238024,0.00034425,2]
[393855125,1763043039875,-500.0,0.00034425,2]
[393855126,1763043039884,-150.0,0.00034425,2]
[393855127,1763043039894,-150.0,0.00034425,2]
[393855128,1763043039904,-500.0,0.00034425,2]
[393855129,1763043039914,-150.0,0.00034425,2]
[393855130,1763043039924,-500.0,0.00034425,2]
[393855131,1763043039933,-500.0,0.00034425,2]
[393855132,1763043039942,-500.0,0.00034425,2]
[393855133,1763043039952,-500.0,0.00034425,2]
[393855134,1763043039962,-500.0,0.00034425,2]
[393855135,1763043039972,-500.0,0.00034425,2]
[393855136,1763043039982,-500.0,0.00034425,2]
[393855137,1763043039992,-500.0,0.00034425,2]
[393855138,1763043040001,-500.0,0.00034425,2]
[393855139,1763043040011,-500.0,0.00034425,2]
[393855140,1763043040021,-197.74868865,0.00034425,2]
[393855141,1763043040031,-150.0,0.00034425,2]
[393855142,1763043040042,-151.74797431,0.00034425,2]
[393855143,1763043040051,-500.0,0.00034425,2]
[393855144,1763043040061,-500.0,0.00034425,2]
[393855145,1763043040071,-13266.51025927,0.00034446,2]
[393855146,1763043040081,-456.0,0.00034448,30]
[393855147,1763043040090,-500.0,0.00034448,2]
[393855148,1763043040100,-1311.0,0.00034448,30]
[393855149,1763043040109,-500.0,0.00034448,30]
[393855150,1763043040119,-500.0,0.00034473,5]
[393855151,1763043040128,-500.0,0.00034473,5]
[393855152,1763043040137,-500.0,0.00034473,5]
[393855153,1763043040147,-500.0,0.00034473,5]
[393855154,1763043040156,-500.0,0.00034473,5]
[393855155,1763043040166,-500.0,0.00034473,5]
[393855156,1763043040176,-352.74427323,0.00034473,5]
[393855157,1763043040185,-500.0,0.00034473,5]
[393855158,1763043040195,-500.0,0.00034473,5]
[393855159,1763043040204,-501.86872129,0.00034473,5]
[393855160,1763043040213,-500.0,0.00034562,2]
[393855161,1763043040223,-216.9665417,0.00034562,2]
[393855162,1763043040232,-500.0,0.00034562,2]
[393855163,1763043040241,-500.0,0.00034562,2]
[393855164,1763043040251,-150.0,0.00034562,2]
[393855165,1763043040260,-500.0,0.00034562,2]
[393855166,1763043040270,-152.66728149,0.00034562,2]
[393855167,1763043040279,-150.0,0.00034562,2]
[393855168,1763043040288,-500.0,0.00034562,2]
[393855169,1763043040298,-500.0,0.00034562,2]
[393855170,1763043040308,-7985.74,0.00034573,2]
[393855171,1763043040318,-456.0,0.00034585,30]
[393855172,1763043040328,-500.0,0.00034585,2]
[393855173,1763043040337,-1311.0,0.00034585,30]
[393855174,1763043040347,-262.95389872,0.00034585,30]
[393855175,1763043040358,-500.0,0.00034699,2]
[393855176,1763043040369,-410.45061376,0.00034699,2]
[393855177,1763043040379,-500.0,0.00034699,2]
[393855178,1763043040389,-200.0,0.00034699,2]
[393855179,1763043040399,-350.0,0.00034699,2]
[393855180,1763043040409,-150.0,0.00034699,2]
[393855181,1763043040418,-500.0,0.00034699,2]
[393855182,1763043040428,-500.0,0.00034699,2]
[393855183,1763043040437,-456.0,0.00034722,30]
[393855184,1763043040447,-500.0,0.00034722,2]
[393855186,1763043040456,-1311.0,0.00034722,30]
[393855188,1763043040465,-500.0,0.00034836,2]
[393855190,1763043040474,-500.0,0.00034836,2]
[393855191,1763043040483,-273.57597495,0.00034836,2]
[393855192,1763043040496,-565.74348878,0.00034836,2]
[393855193,1763043040505,-500.0,0.00034836,2]
[393855194,1763043040514,-456.0,0.00034859,30]
[393855195,1763043040523,-163.00090411,0.00034859,2]
[393855196,1763043040532,-1311.0,0.00034859,30]
[393855197,1763043040543,-500.0,0.00034973,2]
[393855198,1763043040554,-500.0,0.00034973,2]
[393855199,1763043040565,-500.0,0.00034973,2]
[393855200,1763043040574,-456.0,0.00034996,30]
[393855201,1763043040583,-1311.0,0.00034996,30]
[393855202,1763043040592,-187.75,0.00035,45]
[393855203,1763043040601,-1000.0,0.00035021,5]
[393855204,1763043040610,-1000.0,0.00035021,5]
[393855205,1763043040620,-1000.0,0.00035021,5]
[393855206,1763043040629,-506.67445187,0.00035021,5]
[393855207,1763043040638,-503.61158454,0.00035021,5]
[393855208,1763043040647,-1000.0,0.00035021,5]
[393855209,1763043040656,-482.77598454,0.00035021,5]
[393855210,1763043040666,-777.76184941,0.00035055,2]
[393855211,1763043040676,-1190.0,0.00035092,2]
[393855212,1763043040685,-906.0,0.00035092,2]
[393855213,1763043040695,-560.0,0.00035092,2]
[393855214,1763043040704,-2144.0,0.00035092,2]
[393855215,1763043040714,-500.0,0.0003511,2]
[393855216,1763043040723,-500.0,0.0003511,2]
[393855217,1763043040732,-500.0,0.0003511,2]
[393855218,1763043040741,-456.0,0.00035133,30]
[393855219,1763043040750,-1311.0,0.00035133,30]
[393855220,1763043040760,-500.0,0.00035247,2]
[393855221,1763043040769,-456.0,0.0003527,30]
[393855222,1763043040778,-1311.0,0.0003527,30]
[393855223,1763043040788,-165.12203588,0.00035305,2]
[393855224,1763043040797,-500.0,0.00035384,2]
[393855225,1763043040807,-456.0,0.00035407,30]
[393855226,1763043040816,-1311.0,0.00035407,30]
[393855227,1763043040826,-500.0,0.00035521,2]
[393855228,1763043040839,-456.0,0.00035544,30]
[393855229,1763043040849,-1311.0,0.00035544,30]
[393855230,1763043040859,-1500.0,0.00035568,5]
[393855231,1763043040868,-1500.0,0.00035568,5]
[393855232,1763043040878,-509.34676905,0.00035568,5]
[393855233,1763043040887,-1000.0,0.00035568,5]
[393855234,1763043040896,-500.0,0.00035616,10]
[393855235,1763043040906,-500.0,0.00035658,2]
[393855236,1763043040916,-456.0,0.00035681,30]
[393855237,1763043040925,-1311.0,0.00035681,30]
[393855238,1763043040935,-354.0,0.00035735,2]
[393855239,1763043040945,-500.0,0.00035753,10]
[393855240,1763043040955,-777.76184941,0.00035764,2]
[393855241,1763043040965,-500.0,0.00035795,2]
[393855242,1763043040974,-459.44188538,0.00035818,30]
[393855243,1763043040983,-1328.33659634,0.00035818,30]
[393855244,1763043040992,-283.0,0.00035852,7]
[393855245,1763043041002,-500.0,0.0003589,10]
[393855246,1763043041011,-500.0,0.00035932,2]
[393855247,1763043041021,-171.93,0.00035933,2]
[393855248,1763043041030,-312.0,0.00035945,2]
[393855249,1763043041040,-194.0,0.00036,30]
[393855250,1763043041050,-187.0,0.00036,90]
[393855251,1763043041061,-500.0,0.00036069,2]
[393855252,1763043041071,-2545.54,0.00036098,2]
[393855253,1763043041081,-1394.07329233,0.00036116,5]
[393855254,1763043041090,-518.07329088,0.00036116,5]
[393855255,1763043041099,-235.0,0.00036171,2]
[393855256,1763043041109,-500.0,0.00036206,2]
[393855257,1763043041118,-235.345279,0.00036246,20]
[393855258,1763043041127,-163.27914,0.00036246,20]
[393855259,1763043041137,-500.0,0.00036343,2]
[393855260,1763043041146,-777.76184941,0.00036473,2]
[393855261,1763043041156,-353.38270372,0.0003648,2]
[393855262,1763043041167,-12441.00280083,0.00036489,2]
[393855263,1763043041176,-540.57,0.00036505,2]
[393855264,1763043041185,-235.0,0.00036621,7]
[393855265,1763043041195,-235.0,0.00036648,2]
[393855266,1763043041204,-235.0,0.00036662,7]
[393855267,1763043041213,-150.0,0.0003674,7]
[393855268,1763043041223,-1000.0,0.00036776,30]
[393855269,1763043041232,-1333.97768008,0.00036776,30]
[393855270,1763043041241,-1000.0,0.00036776,30]
[393855271,1763043041251,-1784.94069348,0.00036776,30]
[393855272,1763043041262,-1000.0,0.00036776,30]
[393855273,1763043041272,-500.0,0.00036871,30]
[393855274,1763043041282,-3000.0,0.000371,20]
[393855275,1763043041291,-235.0,0.00037161,120]
[393855276,1763043041301,-777.76184941,0.00037182,2]
[393855277,1763043041310,-283.0,0.00037192,120]
[393855278,1763043041319,-283.0,0.00037194,2]
[393855279,1763043041328,-235.0,0.00037212,2]
[393855280,1763043041337,-1000.0,0.00037224,2]
[393855281,1763043041346,-235.0,0.00037247,120]
[393855282,1763043041356,-354.0,0.00037254,7]
[393855283,1763043041365,-235.0,0.00037541,2]
[393855284,1763043041374,-171.93,0.00037556,2]
[393855285,1763043041384,-168.24670757,0.000376,120]
[393855286,1763043041393,-2551.54183466,0.00037611,5]
[393855287,1763043041403,-283.0,0.00037631,2]
[393855288,1763043041414,-1000.0,0.00037688,2]
[393855289,1763043041423,-235.0,0.00037695,7]
[393855290,1763043041432,-162.13,0.00037725,2]
[393855291,1763043041441,-500.0,0.00037787,2]
[393855292,1763043041450,-4418.42882318,0.00037788,2]
[393855293,1763043041460,-187.0,0.000378,120]
[393855294,1763043041470,-5000.0,0.00037819,2]
[393855295,1763043041481,-777.76184941,0.00037892,2]
[393855296,1763043041495,-150.0,0.00037894,5]
[393855297,1763043041505,-235.0,0.00037914,2]
[393855298,1763043041515,-235.0,0.00037929,2]
[393855299,1763043041525,-1233.8,0.00038,2]
[393855300,1763043041535,-1190.0,0.00038092,2]
[393855301,1763043041544,-906.0,0.00038092,2]
[393855302,1763043041554,-299.379,0.00038092,2]
[393855303,1763043041565,-1844.221,0.00038092,2]
[393855304,1763043041575,-2000.0,0.000381,20]
[393855305,1763043041584,-150.0,0.000381,7]
[393855306,1763043041594,-283.0,0.00038168,2]
[393855307,1763043041603,-235.0,0.00038277,2]
[393855308,1763043041612,-197.97128644,0.00038334,30]
[393855309,1763043041621,-775.87,0.00038356,4]
[393855310,1763043041630,-500.0,0.00038356,4]
[393855311,1763043041638,-500.0,0.00038356,30]
[393855312,1763043041645,-183.39180887,0.00038442,5]
[393855313,1763043041653,-235.0,0.0003847,2]
[393855314,1763043041662,-777.76184941,0.00038601,2]
[393855315,1763043041671,-153.0,0.00038613,2]
[393855316,1763043041681,-153.0,0.00038613,2]
[393855317,1763043041690,-153.0,0.00038613,2]
[393855318,1763043041700,-153.0,0.00038613,2]
[393855319,1763043041710,-153.0,0.00038613,2]
[393855320,1763043041720,-153.0,0.00038613,2]
[393855321,1763043041729,-153.0,0.00038613,2]
[393855322,1763043041739,-153.0,0.00038613,2]
[393855323,1763043041748,-153.0,0.00038613,2]
[393855324,1763043041758,-153.0,0.00038613,2]
[393855325,1763043041768,-153.0,0.00038613,2]
[393855326,1763043041777,-153.0,0.00038618,2]
[393855327,1763043041787,-153.0,0.00038618,2]
[393855328,1763043041796,-153.0,0.00038618,2]
[393855329,1763043041806,-775.87,0.0003863,4]
[393855330,1763043041815,-500.0,0.0003863,4]
[393855331,1763043041824,-500.0,0.0003863,30]
[393855332,1763043041833,-12903.2592034,0.00038636,4]
[393855333,1763043041843,-153.0,0.00038641,2]
[393855334,1763043041852,-153.0,0.00038641,2]
[393855335,1763043041862,-153.0,0.00038641,2]
[393855336,1763043041871,-153.0,0.00038641,2]
[393855337,1763043041881,-153.0,0.00038641,2]
[393855338,1763043041890,-153.0,0.00038641,2]
[393855339,1763043041899,-153.0,0.00038641,2]
[393855340,1763043041909,-153.0,0.00038641,2]
[393855341,1763043041918,-153.0,0.00038641,2]
[393855342,1763043041928,-153.0,0.00038641,2]
[393855343,1763043041938,-153.0,0.00038641,2]
[393855344,1763043041947,-153.0,0.00038641,2]
[393855345,1763043041957,-153.0,0.00038641,2]
[393855346,1763043041966,-153.0,0.00038641,2]
[393855347,1763043041975,-153.0,0.00038641,2]
[393855348,1763043041984,-153.0,0.00038641,2]
[393855349,1763043041994,-153.0,0.00038641,2]
[393855350,1763043042003,-153.0,0.00038641,2]
[393855351,1763043042012,-153.0,0.00038641,2]
[393855352,1763043042022,-153.0,0.00038641,2]
[393855353,1763043042031,-153.0,0.00038641,2]
[393855354,1763043042040,-153.0,0.00038641,2]
[393855355,1763043042050,-153.0,0.00038641,2]
[393855356,1763043042059,-153.0,0.00038641,2]
[393855357,1763043042068,-153.0,0.00038641,2]
[393855358,1763043042077,-153.0,0.00038641,2]
[393855359,1763043042086,-153.0,0.00038641,2]
[393855360,1763043042095,-153.0,0.00038641,2]
[393855361,1763043042104,-153.0,0.00038641,2]
[393855362,1763043042113,-153.0,0.00038641,2]
[393855363,1763043042123,-153.0,0.00038646,2]
[393855364,1763043042132,-153.0,0.00038646,2]
[393855365,1763043042142,-153.0,0.00038646,2]
[393855366,1763043042151,-33305.0021,0.00038646,2]
[393855367,1763043042160,-1000.0,0.00038646,2]
[393855368,1763043042169,-153.0,0.00038669,2]
[393855369,1763043042178,-153.0,0.00038669,2]
[393855370,1763043042187,-153.0,0.00038669,2]
[393855371,1763043042196,-153.0,0.00038669,2]
[393855372,1763043042206,-153.0,0.00038669,2]
[393855373,1763043042215,-153.0,0.00038669,2]
[393855374,1763043042225,-153.0,0.00038669,2]
[393855375,1763043042234,-153.0,0.00038669,2]
[393855376,1763043042243,-153.0,0.00038669,2]
[393855377,1763043042252,-153.0,0.00038669,2]
[393855378,1763043042261,-153.0,0.00038669,2]
[393855379,1763043042271,-153.0,0.00038669,2]
[393855380,1763043042423,-153.0,0.00038669,2]
[393855381,1763043042434,-153.0,0.00038669,2]
[393855382,1763043042444,-153.0,0.00038669,2]
[393855383,1763043042453,-153.0,0.00038669,2]
[393855384,1763043042463,-153.0,0.00038669,2]
[393855385,1763043042472,-153.0,0.00038669,2]
[393855386,1763043042482,-153.0,0.00038669,2]
[393855387,1763043042494,-153.0,0.00038669,2]
[393855388,1763043042504,-153.0,0.00038669,2]
[393855389,1763043042513,-153.0,0.00038669,2]
[393855390,1763043042522,-153.0,0.00038669,2]
[393855391,1763043042533,-153.0,0.00038669,2]
[393855392,1763043042542,-500.0,0.00038673,5]
[393855393,1763043042551,-150.0,0.00038673,5]
[393855394,1763043042561,-162.39700313,0.00038673,5]
[393855395,1763043042572,-150.31084984,0.00038673,5]
[393855396,1763043042582,-1233.8,0.0003872,2]
[393855397,1763043042591,-12903.2592034,0.00038736,4]
[393855398,1763043042601,-8192.72436442,0.00038746,2]
[393855399,1763043042610,-235.0,0.00038833,2]
[393855400,1763043042619,-1000.0,0.00038904,120]
[393855401,1763043042629,-1000.0,0.00038904,120]
[393855402,1763043042638,-1000.0,0.00038904,120]
[393855403,1763043042648,-500.0,0.00038904,120]
[393855404,1763043042657,-775.87,0.00038904,4]
[393855405,1763043042668,-500.0,0.00038904,4]
[393855406,1763043042678,-500.0,0.00038904,30]
[393855407,1763043042687,-354.0,0.0003893,120]
[393855408,1763043042697,-156.37397092,0.00039,3]
[393855409,1763043042706,-235.0,0.00039009,2]
[393855410,1763043042716,-235.0,0.00039051,2]
[393855411,1763043042726,-1397.0,0.00039052,5]
[393855412,1763043042736,-2000.0,0.000391,25]
[393855413,1763043042745,-500.0,0.00039151,120]
[393855415,1763043042755,-150.0,0.00039154,120]
[393855417,1763043042764,-775.87,0.00039178,4]
[393855419,1763043042773,-155.74827738,0.00039178,4]
[393855421,1763043042783,-500.0,0.00039178,30]
[393855423,1763043042792,-1000.0,0.00039221,5]
[393855424,1763043042801,-250.0,0.00039221,5]
[393855426,1763043042810,-150.0,0.00039255,2]
[393855428,1763043042819,-12903.2592034,0.00039308,4]
[393855430,1763043042828,-777.76184941,0.0003931,2]
[393855431,1763043042837,-235.0,0.00039322,2]
[393855432,1763043042846,-1320.41292136,0.00039352,2]
[393855433,1763043042855,-300.0,0.00039375,2]
[393855434,1763043042864,-1233.8,0.0003944,2]
[393855435,1763043042873,-775.87,0.00039452,4]
[393855436,1763043042883,-500.0,0.00039452,30]
[393855438,1763043042892,-150.0,0.00039461,7]
[393855441,1763043042902,-229.24,0.00039475,2]
[393855445,1763043042912,-36010.0,0.000395,2]
[393855448,1763043042921,-1320.41292131,0.00039505,2]
[393855452,1763043042931,-351.4,0.00039638,2]
[393855454,1763043042941,-300.0,0.00039656,2]
[393855456,1763043042950,-1320.41292131,0.00039658,2]
[393855458,1763043042960,-300.0,0.00039663,2]
[393855461,1763043042969,-775.87,0.00039726,4]
[393855466,1763043042979,-500.0,0.00039726,30]
[393855472,1763043042989,-634.581373,0.00039728,120]
[393855475,1763043042999,-180.69318502,0.00039753,2]
[393855478,1763043043008,-300.0,0.00039762,2]
[393855481,1763043043018,-344.39207861,0.00039768,5]
[393855483,1763043043028,-350.0,0.00039768,5]
[393855486,1763043043038,-300.0,0.00039771,2]
[393855489,1763043043048,-300.0,0.0003979,2]
[393855492,1763043043058,-3134.397402,0.000398,7]
[393855493,1763043043067,-1320.41292131,0.00039811,2]
[393855495,1763043043077,-300.0,0.00039812,2]
[393855496,1763043043087,-300.0,0.00039839,2]
[393855497,1763043043097,-300.0,0.00039899,2]
[393855498,1763043043108,-200.0,0.000399,14]
[393855499,1763043043118,-158.4146185,0.00039936,15]
[393855500,1763043043127,-22463.95,0.00039942,14]
[393855501,1763043043137,-1320.41292131,0.00039964,15]
[393855502,1763043043147,-204.02750616,0.00039967,2]
[393855503,1763043043157,-12903.2592034,0.0003999,4]
[393855504,1763043043169,-500.0,0.00039999,31]
[393855505,1763043043179,-340.06874232,0.00039999,31]
[393855506,1763043043188,-500.0,0.0004,14]
[393855507,1763043043197,-500.0,0.0004,30]
[393855508,1763043043207,-181.0,0.0004,2]
[393855509,1763043043216,-1350.0,0.0004,10]
[393855510,1763043043225,-775.87,0.0004,4]
[393855511,1763043043235,-1048.04254453,0.00040013,20]
[393855512,1763043043245,-777.76184941,0.00040019,15]
[393855513,1763043043254,-300.0,0.00040036,2]
[393855514,1763043043263,-303.71306554,0.0004008,2]
[393855515,1763043043272,-800.0,0.000401,14]
[393855516,1763043043282,-300.0,0.00040115,2]
[393855517,1763043043291,-1320.41292131,0.00040116,15]
[393855518,1763043043300,-300.0,0.00040143,2]
[393855519,1763043043310,-211.19394873,0.00040173,12]
[393855520,1763043043321,-300.0,0.00040193,2]
[393855521,1763043043330,-1000.0,0.000402,14]
[393855522,1763043043340,-158.41461847,0.000402,15]
[393855523,1763043043350,-188.76561377,0.00040201,2]
[393855524,1763043043359,-180.69318502,0.00040242,2]
[393855525,1763043043369,-300.0,0.00040252,2]
[393855526,1763043043378,-12903.2592034,0.00040253,4]
[393855527,1763043043389,-300.0,0.00040266,2]
[393855528,1763043043398,-1320.41292131,0.00040269,15]
[393855529,1763043043408,-150.0,0.00040273,4]
[393855530,1763043043419,-150.0,0.00040273,4]
[393855531,1763043043428,-150.0,0.00040273,4]
[393855532,1763043043438,-150.0,0.00040273,4]
[393855533,1763043043446,-150.0,0.00040273,4]
[393855534,1763043043456,-150.0,0.00040273,4]
[393855535,1763043043465,-150.0,0.00040273,4]
[393855536,1763043043474,-150.0,0.00040273,4]
[393855538,1763043043483,-500.0,0.00040273,4]
[393855539,1763043043497,-775.87,0.00040273,4]
[393855540,1763043043508,-500.0,0.00040274,30]
[393855541,1763043043518,-300.0,0.00040284,2]
[393855542,1763043043529,-300.0,0.00040287,2]
[393855543,1763043043539,-300.0,0.0004029,2]
[393855544,1763043043547,-1300.0,0.000403,14]
[393855545,1763043043557,-300.0,0.00040302,2]
[393855546,1763043043568,-300.0,0.00040303,2]
[393855547,1763043043578,-332.6910584,0.00040303,2]
[393855548,1763043043587,-300.0,0.00040308,2]
[393855549,1763043043596,-450.0,0.00040316,5]
[393855550,1763043043606,-300.0,0.0004032,2]
[393855551,1763043043615,-300.0,0.00040321,2]
[393855552,1763043043624,-300.0,0.00040335,2]
[393855553,1763043043633,-300.0,0.00040342,2]
[393855554,1763043043643,-239.71019416,0.00040345,5]
[393855555,1763043043652,-300.0,0.00040354,2]
[393855556,1763043043663,-12903.2592034,0.00040369,4]
[393855557,1763043043672,-300.0,0.00040371,2]
[393855558,1763043043681,-206.37744865,0.00040378,120]
[393855559,1763043043690,-15338.50703542,0.00040379,2]
[393855560,1763043043699,-300.0,0.00040379,2]
[393855561,1763043043709,-300.0,0.00040392,2]
[393855562,1763043043718,-300.0,0.00040395,2]
[393855563,1763043043727,-12903.2592034,0.000404,4]
[393855564,1763043043737,-200.0,0.000404,14]
[393855565,1763043043746,-150.0,0.0004041,4]
[393855566,1763043043755,-150.0,0.0004041,4]
[393855567,1763043043764,-150.0,0.0004041,4]
[393855568,1763043043773,-500.0,0.0004041,4]
[393855569,1763043043782,-300.0,0.00040419,2]
[393855570,1763043043792,-1320.41292131,0.00040422,15]
[393855571,1763043043801,-300.0,0.00040434,2]
[393855572,1763043043810,-300.0,0.00040453,2]
[393855573,1763043043818,-300.0,0.00040456,2]
[393855574,1763043043825,-300.0,0.0004046,2]
[393855575,1763043043834,-300.0,0.00040462,2]
[393855576,1763043043841,-158.41461847,0.00040464,15]
[393855577,1763043043849,-300.0,0.00040466,2]
[393855578,1763043043857,-300.0,0.00040468,2]
[393855579,1763043043864,-300.0,0.00040473,2]
[393855580,1763043043873,-200.0,0.000405,14]
[393855581,1763043043882,-5517.0,0.000405,3]
[393855582,1763043043892,-300.0,0.00040503,2]
[393855583,1763043043902,-300.0,0.00040513,2]
[393855584,1763043043912,-300.0,0.00040516,2]
[393855585,1763043043921,-188.76561377,0.0004052,2]
[393855586,1763043043930,-188.76561377,0.0004052,2]
[393855587,1763043043940,-300.0,0.0004052,2]
[393855588,1763043043951,-300.0,0.00040524,2]
[393855589,1763043043960,-300.0,0.00040527,2]
[393855590,1763043043970,-300.0,0.00040534,2]
[393855591,1763043043979,-300.0,0.00040539,2]
[393855592,1763043043989,-200.0,0.00040547,4]
[393855593,1763043043998,-200.0,0.00040547,4]
[393855594,1763043044007,-200.0,0.00040547,4]
[393855595,1763043044016,-500.0,0.00040547,4]
[393855596,1763043044025,-775.87,0.00040547,4]
[393855597,1763043044035,-500.0,0.00040548,30]
[393855598,1763043044044,-300.0,0.0004055,2]
[393855599,1763043044054,-1320.41292131,0.00040575,15]
[393855600,1763043044064,-300.0,0.0004058,2]
[393855601,1763043044074,-300.0,0.0004058,2]
[393855602,1763043044083,-150.0,0.000406,44]
[393855603,1763043044093,-187.0,0.000406,10]
[393855604,1763043044103,-300.0,0.000406,2]
[393855605,1763043044113,-200.0,0.000406,14]
[393855606,1763043044123,-300.0,0.00040605,2]
[393855607,1763043044132,-300.0,0.00040607,2]
[393855608,1763043044143,-12903.2592034,0.0004061,4]
[393855609,1763043044153,-1725.16456899,0.00040625,2]
[393855610,1763043044165,-300.0,0.00040657,2]
[393855611,1763043044175,-300.0,0.0004066,2]
[393855612,1763043044185,-300.0,0.00040665,2]
[393855613,1763043044195,-300.0,0.00040683,2]
[393855614,1763043044205,-300.0,0.00040689,2]
[393855615,1763043044214,-300.0,0.00040691,2]
[393855616,1763043044224,-300.0,0.00040697,2]
[393855617,1763043044234,-10952.9853551,0.00040699,4]
[393855618,1763043044244,-150.0,0.000407,60]
[393855619,1763043044254,-200.0,0.000407,14]
[393855620,1763043044263,-300.0,0.00040701,2]
[393855621,1763043044272,-12903.2592034,0.00040705,4]
[393855622,1763043044281,-10952.9853551,0.00040708,4]
[393855623,1763043044290,-500.0,0.00040709,15]
[393855624,1763043044300,-500.0,0.00040709,15]
[393855625,1763043044309,-500.0,0.00040709,15]
[393855626,1763043044318,-500.0,0.00040709,15]
[393855627,1763043044328,-183.29122943,0.00040709,15]
[393855628,1763043044338,-500.0,0.00040709,15]
[393855629,1763043044348,-500.0,0.00040709,15]
[393855630,1763043044357,-500.0,0.00040709,15]
[393855631,1763043044366,-500.0,0.00040709,15]
[393855632,1763043044375,-500.0,0.00040709,15]
[393855633,1763043044384,-500.0,0.00040709,15]
[393855634,1763043044393,-500.0,0.00040709,15]
[393855635,1763043044402,-500.0,0.00040709,15]
[393855636,1763043044413,-25806.5184068,0.00040718,4]
[393855637,1763043044422,-32858.9560652,0.00040718,4]
[393855638,1763043044432,-300.0,0.00040725,2]
[393855639,1763043044441,-500.0,0.00040727,2]
[393855640,1763043044450,-300.0,0.00040728,2]
[393855641,1763043044459,-171.62032392,0.00040728,14]
[393855642,1763043044469,-777.76184941,0.00040728,15]
[393855643,1763043044478,-2233.34684636,0.00040728,120]
[393855644,1763043044491,-211.19394873,0.00040728,13]
[393855645,1763043044501,-1320.41292131,0.00040728,15]
[393855646,1763043044510,-158.41461847,0.00040728,15]
[393855647,1763043044519,-1849.42666762,0.00040728,2]
[393855648,1763043044528,-3922.8304617,0.00040728,2]
[393855649,1763043044538,-370.12971956,0.00040728,2]
[393855650,1763043044548,-3848.20107819,0.00040728,2]
[393855651,1763043044557,-180.69318502,0.0004073,2]
[393855652,1763043044567,-300.0,0.0004073,10]
[393855653,1763043044577,-677.68637483,0.0004073,30]
[393855654,1763043044587,-300.0,0.0004073,10]
[393855655,1763043044596,-300.0,0.0004073,10]
[393855656,1763043044606,-300.0,0.0004073,10]
[393855657,1763043044615,-300.0,0.00040744,10]
[393855658,1763043044625,-300.0,0.00040753,2]
[393855659,1763043044634,-300.0,0.00040763,2]
[393855660,1763043044644,-160.62125012,0.00040767,30]
[393855661,1763043044654,-2223.21789277,0.00040767,30]
[393855662,1763043044664,-790.95554794,0.00040767,30]
[393855663,1763043044674,-353.5249988,0.0004077,2]